bitfinex-derivatives/quotes_ETHF0:USTF0_20260117
["timestamp","ask_amount","ask_price","bid_price","bid_amount"]
[1768641622028,0.9170663,3297.3,3296.5,0.40363501]
[1768641622229,0.0033372,3297.5,3296.5,0.40363501]
[1768641622425,0.91705405,3297.4,3296.5,0.40363501]
[1768641622625,0.91705405,3297.3,3296.5,0.40363501]
[1768641622839,0.0033372,3297.5,3296.5,0.40363501]
[1768641623040,0.91705452,3297.4,3296.5,0.40363501]
[1768641623239,0.91705452,3297.3,3296.5,0.40363501]
[1768641623442,0.0033372,3297.5,3296.5,0.40363501]
[1768641623641,0.91704885,3297.4,3296.5,0.40363501]
[1768641623846,0.91704885,3297.3,3296.5,0.40363501]
[1768641624048,0.0033372,3297.5,3296.5,0.40363501]
[1768641624340,0.91705242,3297.4,3296.5,0.40363501]
[1768641624541,0.91705242,3297.3,3296.5,0.40363501]
[1768641624845,0.0033372,3297.5,3296.5,0.40363501]
[1768641625042,0.91704546,3297.4,3296.5,0.40363501]
[1768641625244,0.91704546,3297.3,3296.5,0.40363501]
[1768641625443,0.0033372,3297.5,3296.5,0.40363501]
[1768641625637,0.91502145,3297.4,3296.5,0.40363501]
[1768641625839,0.91502145,3297.3,3296.5,0.40363501]
[1768641626036,0.0033372,3297.5,3296.5,0.40363501]
[1768641626244,0.91503402,3297.4,3296.5,0.40363501]
[1768641626543,0.91503402,3297.3,3296.5,0.40363501]
[1768641626842,0.0033372,3297.5,3296.5,0.40363501]
[1768641627034,0.91504115,3297.4,3296.5,0.40363501]
[1768641627237,0.91504115,3297.3,3296.5,0.40363501]
[1768641627437,0.0033372,3297.5,3296.5,0.40363501]
[1768641627637,0.91506384,3297.4,3296.5,0.40363501]
[1768641627840,0.91506384,3297.3,3296.5,0.40363501]
[1768641628138,0.91509308,3297.2,3296.5,0.40363501]
[1768641628335,0.0033372,3297.5,3296.5,0.40363501]
[1768641628547,0.91509309,3297.4,3296.5,0.40363501]
[1768641628748,0.91509309,3297.3,3296.5,0.40363501]
[1768641629045,0.91509309,3297.2,3296.5,0.40363501]
[1768641629247,0.0033372,3297.5,3296.5,0.40363501]
[1768641629448,0.9150843,3297.4,3296.5,0.40363501]
[1768641629647,0.9150843,3297.3,3296.5,0.40363501]
[1768641629848,0.9150843,3297.2,3296.5,0.40363501]
[1768641630050,0.0033372,3297.5,3296.5,0.40363501]
[1768641630250,0.915081,3297.4,3296.5,0.40363501]
[1768641630548,0.915081,3297.3,3296.5,0.40363501]
[1768641630748,0.915081,3297.2,3296.5,0.40363501]
[1768641630948,0.0033372,3297.5,3296.5,0.40363501]
[1768641631138,0.91509471,3297.4,3296.5,0.40363501]
[1768641631335,0.91509471,3297.3,3296.5,0.40363501]
[1768641631548,0.91509471,3297.2,3296.5,0.40363501]
[1768641631756,0.0033372,3297.5,3296.5,0.40363501]
[1768641631947,0.91514502,3297.4,3296.5,0.40363501]
[1768641632148,0.91514502,3297.3,3296.5,0.40363501]
[1768641632351,0.91514502,3297.2,3296.5,0.40363501]
[1768641632549,0.91514502,3297.1,3296.5,0.40363501]
[1768641632748,0.91514502,3297.0,3296.5,0.40363501]
[1768641632953,0.0033372,3297.5,3296.5,0.40363501]
[1768641633157,0.91520487,3297.4,3296.5,0.40363501]
[1768641633355,0.91520487,3297.3,3296.5,0.40363501]
[1768641633548,0.91520487,3297.2,3296.5,0.40363501]
[1768641633853,0.91520487,3297.1,3296.5,0.40363501]
[1768641634055,0.91520487,3297.0,3296.5,0.40363501]
[1768641634247,0.0033372,3297.5,3296.5,0.40363501]
[1768641634446,0.91536005,3297.4,3296.5,0.40363501]
[1768641634652,0.91536005,3297.3,3296.5,0.40363501]
[1768641634853,0.91536005,3297.2,3296.5,0.40363501]
[1768641635057,0.91536005,3297.1,3296.5,0.40363501]
[1768641635255,0.91536005,3297.0,3296.5,0.40363501]
[1768641635457,0.0033372,3297.5,3296.5,0.40363501]
[1768641635658,0.9154605,3297.4,3296.5,0.40363501]
[1768641635859,0.9154605,3297.3,3296.5,0.40363501]
[1768641636049,0.9154605,3297.2,3296.5,0.40363501]
[1768641636252,0.9154605,3297.1,3296.5,0.40363501]
[1768641636459,0.9154605,3297.0,3296.5,0.40363501]
[1768641636655,0.0033372,3297.5,3296.5,0.40363501]
[1768641636852,0.91558343,3297.4,3296.5,0.40363501]
[1768641637051,0.91558343,3297.3,3296.5,0.40363501]
[1768641637247,0.91558343,3297.2,3296.5,0.40363501]
[1768641637456,0.91558343,3297.1,3296.5,0.40363501]
[1768641637660,0.91558343,3297.0,3296.5,0.40363501]
[1768641637856,0.91558343,3296.9,3296.5,0.40363501]
[1768641638157,0.0033372,3297.5,3296.5,0.40363501]
[1768641638357,1.17264233,3297.4,3296.5,0.40363501]
[1768641638559,0.9159519,3297.3,3296.5,0.40363501]
[1768641638751,0.9159519,3297.2,3296.5,0.40363501]
[1768641638951,0.9159519,3297.1,3296.5,0.40363501]
[1768641639155,0.9159519,3297.0,3296.5,0.40363501]
[1768641639359,0.9159519,3296.9,3296.5,0.40363501]
[1768641639558,0.0033372,3297.5,3296.5,0.40363501]
[1768641639758,1.17324937,3297.4,3296.5,0.40363501]
[1768641640059,0.91642416,3297.3,3296.5,0.40363501]
[1768641640258,0.91642416,3297.2,3296.5,0.40363501]
[1768641640461,0.91642416,3297.1,3296.5,0.40363501]
[1768641640651,0.91642416,3297.0,3296.5,0.40363501]
[1768641640959,0.91642416,3296.9,3296.5,0.40363501]
[1768641641256,0.0033372,3297.5,3296.5,0.40363501]
[1768641641457,1.17332692,3297.4,3296.5,0.40363501]
[1768641641653,0.91648522,3297.3,3296.5,0.40363501]
[1768641641853,0.91648522,3297.2,3296.5,0.40363501]
[1768641642053,0.91648522,3297.1,3296.5,0.40363501]
[1768641642247,0.91648522,3297.0,3296.5,0.40363501]
[1768641642446,0.0033372,3297.5,3296.5,0.40363501]
[1768641642652,1.17333599,3297.4,3296.5,0.40363501]
[1768641642848,0.91649251,3297.3,3296.5,0.40363501]
[1768641643052,0.91649251,3297.2,3296.5,0.40363501]
[1768641643362,0.91649251,3297.1,3296.5,0.40363501]
[1768641643565,0.0033372,3297.5,3296.5,0.40363501]
[1768641643754,1.17122392,3297.4,3296.5,0.40363501]
[1768641643950,0.91437781,3297.3,3296.5,0.40363501]
[1768641644154,0.91437781,3297.2,3296.5,0.40363501]
[1768641644362,0.91437781,3297.1,3296.5,0.40363501]
[1768641644555,0.0033372,3297.5,3296.5,0.40363501]
[1768641644757,1.17122389,3297.4,3296.5,0.40363501]
[1768641644958,0.91437729,3297.3,3296.5,0.40363501]
[1768641645157,0.91437729,3297.2,3296.5,0.40363501]
[1768641645359,0.91437729,3297.1,3296.5,0.40363501]
[1768641645561,0.0033372,3297.5,3296.5,0.40363501]
[1768641645860,1.17122377,3297.4,3296.5,0.40363501]
[1768641646167,0.91437719,3297.3,3296.5,0.40363501]
[1768641646365,0.91437719,3297.2,3296.5,0.40363501]
[1768641646665,0.91437719,3297.1,3296.5,0.40363501]
[1768641646860,0.0033372,3297.5,3296.5,0.40363501]
[1768641647054,1.17122323,3297.4,3296.5,0.40363501]
[1768641647253,0.91437677,3297.3,3296.5,0.40363501]
[1768641647463,0.91437677,3297.2,3296.5,0.40363501]
[1768641647660,0.91437677,3297.1,3296.5,0.40363501]
[1768641647859,0.0033372,3297.5,3296.5,0.40363501]
[1768641648059,1.17122403,3297.4,3296.5,0.40363501]
[1768641648264,0.91437741,3297.3,3296.5,0.40363501]
[1768641648460,0.91437741,3297.2,3296.5,0.40363501]
[1768641648662,0.91437741,3297.1,3296.5,0.40363501]
[1768641648961,0.0033372,3297.5,3296.5,0.40363501]
[1768641649162,1.17122553,3297.4,3296.5,0.40363501]
[1768641649363,0.91437859,3297.3,3296.5,0.40363501]
[1768641649559,0.91437859,3297.2,3296.5,0.40363501]
[1768641649761,0.91437859,3297.1,3296.5,0.40363501]
[1768641649962,0.0033372,3297.5,3296.5,0.40363501]
[1768641650163,1.17122561,3297.4,3296.5,0.40363501]
[1768641650371,0.91437866,3297.3,3296.5,0.40363501]
[1768641650668,0.91437866,3297.2,3296.5,0.40363501]
[1768641650868,0.91437866,3297.1,3296.5,0.40363501]
[1768641651068,0.0033372,3297.5,3296.5,0.40363501]
[1768641651273,1.17122502,3297.4,3296.5,0.40363501]
[1768641651465,0.91437822,3297.3,3296.5,0.40363501]
[1768641651662,0.91437822,3297.2,3296.5,0.40363501]
[1768641651961,0.0033372,3297.5,3296.5,0.40363501]
[1768641651962,0.91437822,3297.1,3296.5,0.40363501]
[1768641652162,0.0033372,3297.5,3296.5,0.40363501]
[1768641652355,0.25684674,3297.4,3296.5,0.40363501]
[1768641652560,0.91437795,3297.3,3296.5,0.40363501]
[1768641652757,0.91437795,3297.2,3296.5,0.40363501]
[1768641652960,0.0033372,3297.5,3296.5,0.40363501]
[1768641653161,1.17122468,3297.4,3296.5,0.40363501]
[1768641653357,0.91437794,3297.3,3296.5,0.40363501]
[1768641653557,0.91437794,3297.2,3296.5,0.40363501]
[1768641653762,0.0033372,3297.5,3296.5,0.40363501]
[1768641653970,1.17122644,3297.4,3296.5,0.40363501]
[1768641654172,1.17122646,3297.3,3296.5,0.40363501]
[1768641654472,1.17122646,3297.2,3296.5,0.40363501]
[1768641654673,0.0033372,3297.5,3296.5,0.40363501]
[1768641654875,1.17122758,3297.4,3296.5,0.40363501]
[1768641655173,1.17122758,3297.3,3296.5,0.40363501]
[1768641655373,1.17122758,3297.2,3296.5,0.40363501]
[1768641655673,0.0033372,3297.5,3296.5,0.40363501]
[1768641655865,1.17104516,3297.4,3296.5,0.40363501]
[1768641656064,1.17104502,3297.3,3296.5,0.40363501]
[1768641656267,1.17104502,3297.2,3296.5,0.40363501]
[1768641656565,0.0033372,3297.5,3296.5,0.40363501]
[1768641656766,1.17104427,3297.4,3296.5,0.40363501]
[1768641656973,1.17104427,3297.3,3296.5,0.40363501]
[1768641657173,1.17104427,3297.2,3296.5,0.40363501]
[1768641657474,0.0033372,3297.5,3296.5,0.40363501]
[1768641657674,1.17104532,3297.4,3296.5,0.40363501]
[1768641657874,1.17104532,3297.3,3296.5,0.40363501]
[1768641658170,1.17104532,3297.2,3296.5,0.40363501]
[1768641658372,0.0033372,3297.5,3296.5,0.40363501]
[1768641658575,1.17104744,3297.4,3296.5,0.40363501]
[1768641658770,1.17104744,3297.3,3296.5,0.40363501]
[1768641658973,1.17104744,3297.2,3296.5,0.40363501]
[1768641659174,0.0033372,3297.5,3296.5,0.40363501]
[1768641659375,1.17104751,3297.4,3296.5,0.40363501]
[1768641659569,1.17104751,3297.3,3296.5,0.40363501]
[1768641659768,1.17104751,3297.2,3296.5,0.40363501]
[1768641659973,0.0033372,3297.5,3296.5,0.40363501]
[1768641660176,1.17104651,3297.4,3296.5,0.40363501]
[1768641660372,1.17104651,3297.3,3296.5,0.40363501]
[1768641660566,1.17104651,3297.2,3296.5,0.40363501]
[1768641660768,0.0033372,3297.5,3296.5,0.40363501]
[1768641660967,1.1710465,3297.4,3296.5,0.40363501]
[1768641661168,0.0033372,3297.5,3296.5,0.40363501]
[1768641661169,1.1710465,3297.3,3296.5,0.40363501]
[1768641661475,1.1710465,3297.2,3296.5,0.40363501]
[1768641661664,0.0033372,3297.5,3296.5,0.40363501]
[1768641661867,1.17104378,3297.4,3296.5,0.40363501]
[1768641662068,1.17104378,3297.3,3296.5,0.40363501]
[1768641662367,1.17104378,3297.2,3296.5,0.40363501]
[1768641662572,0.0033372,3297.5,3296.5,0.40363501]
[1768641662774,1.1710431,3297.4,3296.5,0.40363501]
[1768641663076,1.1710431,3297.3,3296.5,0.40363501]
[1768641663273,0.25684648,3297.2,3296.5,0.40363501]
[1768641663473,0.0033372,3297.5,3296.5,0.40363501]
[1768641663674,1.17104251,3297.4,3296.5,0.40363501]
[1768641663873,1.17104251,3297.3,3296.5,0.40363501]
[1768641664071,0.25684635,3297.2,3296.5,0.40363501]
[1768641664274,0.0033372,3297.5,3296.5,0.40363501]
[1768641664474,0.9141938,3297.4,3296.5,0.40363501]
[1768641664678,0.9141938,3297.3,3295.9,0.38305186]
[1768641664872,0.0033372,3297.5,3295.9,0.38305186]
[1768641665072,0.91419204,3297.4,3295.9,0.38305186]
[1768641665272,0.91419204,3297.3,3295.9,0.38305186]
[1768641665572,0.0033372,3297.5,3295.9,0.38305186]
[1768641665772,0.91418846,3297.4,3295.9,0.38305186]
[1768641665976,0.91418846,3297.3,3295.9,0.38305186]
[1768641666178,0.0033372,3297.5,3295.9,0.38305186]
[1768641666372,0.91418888,3297.4,3295.9,0.38305186]
[1768641666573,0.91418888,3297.3,3295.9,0.38305186]
[1768641666770,0.0033372,3297.5,3295.9,0.38305186]
[1768641666970,0.91418617,3297.4,3295.9,0.38305186]
[1768641667265,0.91418617,3297.3,3295.9,0.38305186]
[1768641667470,0.0033372,3297.5,3295.9,0.38305186]
[1768641667769,0.91418475,3297.4,3295.9,0.38305186]
[1768641667970,0.91418475,3297.3,3295.9,0.38305186]
[1768641668170,0.0033372,3297.5,3295.9,0.38305186]
[1768641668372,0.9141826,3297.4,3295.9,0.38305186]
[1768641668572,0.9141826,3297.3,3295.9,0.38305186]
[1768641668774,0.0033372,3297.5,3295.9,0.38305186]
[1768641668975,0.91418258,3297.4,3295.9,0.38305186]
[1768641669182,0.91418258,3297.3,3295.9,0.38305186]
[1768641669379,0.0033372,3297.5,3295.9,0.38305186]
[1768641669580,0.91417971,3297.4,3295.9,0.38305186]
[1768641669778,0.91417971,3297.3,3295.9,0.38305186]
[1768641669981,0.0033372,3297.5,3295.9,0.38305186]
[1768641670178,0.91420668,3297.4,3295.9,0.38305186]
[1768641670380,0.91420668,3297.3,3295.9,0.38305186]
[1768641670580,0.0033372,3297.5,3295.9,0.38305186]
[1768641670780,0.91420479,3297.4,3295.9,0.38305186]
[1768641670981,0.91420479,3297.3,3295.9,0.38305186]
[1768641671282,0.0033372,3297.5,3295.9,0.38305186]
[1768641671482,0.91420185,3297.4,3295.9,0.38305186]
[1768641671780,0.91420185,3297.3,3295.9,0.38305186]
[1768641671981,0.0033372,3297.5,3295.9,0.38305186]
[1768641672173,0.91420165,3297.4,3295.9,0.38305186]
[1768641672378,0.91420165,3297.3,3295.9,0.38305186]
[1768641672581,0.0033372,3297.5,3295.9,0.38305186]
[1768641672780,0.91419964,3297.4,3295.9,0.38305186]
[1768641672978,0.91419964,3297.3,3295.9,0.38305186]
[1768641673178,0.0033372,3297.5,3295.9,0.38305186]
[1768641673379,0.91419994,3297.4,3295.9,0.38305186]
[1768641673580,0.91419994,3297.3,3295.9,0.38305186]
[1768641673780,0.0033372,3297.5,3295.9,0.38305186]
[1768641673987,0.91420153,3297.4,3295.9,0.38305186]
[1768641674184,0.91420153,3297.3,3295.9,0.38305186]
[1768641674486,0.0033372,3297.5,3295.9,0.38305186]
[1768641674685,0.91422492,3297.4,3295.9,0.38305186]
[1768641674885,0.91422492,3297.3,3295.9,0.38305186]
[1768641675087,0.0033372,3297.5,3295.9,0.38305186]
[1768641675287,0.91422489,3297.4,3295.9,0.38305186]
[1768641675588,0.91422489,3297.3,3295.9,0.38305186]
[1768641675789,0.0033372,3297.5,3295.9,0.38305186]
[1768641675980,0.91422494,3297.4,3295.9,0.38305186]
[1768641676180,0.91422494,3297.3,3295.9,0.38305186]
[1768641676380,0.0033372,3297.5,3295.9,0.38305186]
[1768641676587,0.91422633,3297.4,3295.9,0.38305186]
[1768641676886,0.91422633,3297.3,3295.9,0.38305186]
[1768641677083,0.0033372,3297.5,3295.9,0.38305186]
[1768641677389,0.91422433,3297.4,3295.9,0.38305186]
[1768641677586,0.91422433,3297.3,3295.9,0.38305186]
[1768641677788,0.0033372,3297.5,3295.9,0.38305186]
[1768641678086,2.15321427,3297.4,3295.9,0.38305186]
[1768641678289,0.91422291,3297.3,3295.9,0.38305186]
[1768641678491,0.91422291,3297.2,3295.9,0.38305186]
[1768641678688,0.98214134,3297.4,3295.9,0.38305186]
[1768641678689,0.91422291,3297.1,3295.9,0.38305186]
[1768641678889,0.35782287,3297.5,3295.9,0.38305186]
[1768641679087,1.17089906,3297.4,3295.9,0.38305186]
[1768641679389,1.17089906,3297.3,3295.9,0.38305186]
[1768641679589,0.91405434,3297.2,3295.9,0.38305186]
[1768641679891,0.91405434,3297.1,3295.9,0.38305186]
[1768641680090,0.35782287,3297.5,3295.9,0.38305186]
[1768641680293,1.17065014,3297.4,3295.9,0.38305186]
[1768641680591,1.17065014,3297.3,3295.9,0.38305186]
[1768641680796,0.91390068,3297.2,3295.9,0.38305186]
[1768641680986,0.91390068,3297.1,3295.9,0.38305186]
[1768641681189,0.35782287,3297.5,3295.9,0.38305186]
[1768641681490,1.17041434,3297.4,3295.9,0.38305186]
[1768641681688,1.17041434,3297.3,3295.9,0.38305186]
[1768641681988,0.91369467,3297.2,3295.9,0.38305186]
[1768641682186,0.91369467,3297.1,3295.9,0.38305186]
[1768641682387,0.35782287,3297.5,3295.9,0.38305186]
[1768641682587,1.170324,3297.4,3295.9,0.38305186]
[1768641682787,1.170324,3297.3,3295.9,0.38305186]
[1768641682989,0.91362582,3297.2,3295.9,0.38305186]
[1768641683189,0.91362582,3297.1,3295.9,0.38305186]
[1768641683390,0.91362582,3297.0,3295.9,0.38305186]
[1768641683582,0.91362582,3296.9,3295.9,0.38305186]
[1768641683787,0.35782287,3297.5,3295.9,0.38305186]
[1768641683993,1.17025102,3297.4,3295.9,0.38305186]
[1768641684196,0.91357,3297.3,3295.9,0.38305186]
[1768641684393,0.91357,3297.2,3295.9,0.38305186]
[1768641684699,0.91357,3297.1,3295.9,0.38305186]
[1768641684895,0.91357,3297.0,3295.9,0.38305186]
[1768641685096,0.91357,3296.9,3295.9,0.38305186]
[1768641685395,0.35782287,3297.5,3295.9,0.38305186]
[1768641685595,1.17532187,3297.4,3295.9,0.38305186]
[1768641685893,0.91866098,3297.3,3295.9,0.38305186]
[1768641686094,0.91866098,3297.2,3295.9,0.38305186]
[1768641686304,0.91866098,3297.4,3295.9,0.38305186]
[1768641686597,0.35782287,3297.5,3295.9,0.38305186]
[1768641686798,0.2566592,3297.4,3295.9,0.38305186]
[1768641686998,0.35782287,3297.5,3295.9,0.38305186]
[1768641687202,1.17532732,3297.4,3295.9,0.38305186]
[1768641687403,0.91866786,3297.4,3295.9,0.38305186]
[1768641687603,0.35782287,3297.5,3295.9,0.38305186]
[1768641687800,0.25665007,3297.4,3295.9,0.38305186]
[1768641688003,0.35782287,3297.5,3295.9,0.38305186]
[1768641688216,1.17532356,3297.4,3295.9,0.38305186]
[1768641688404,0.9186735,3297.3,3295.9,0.38305186]
[1768641688606,0.9186735,3297.2,3295.9,0.38305186]
[1768641688903,0.9186735,3297.1,3295.9,0.38305186]
[1768641689201,0.9186735,3297.0,3295.9,0.38305186]
[1768641689501,0.9186735,3296.9,3295.9,0.38305186]
[1768641689698,0.35782287,3297.5,3295.9,0.38305186]
[1768641690008,1.17523318,3297.4,3295.9,0.38305186]
[1768641690308,0.91859888,3297.3,3295.9,0.38305186]
[1768641690509,0.91859888,3297.2,3295.9,0.38305186]
[1768641690707,0.91859888,3297.1,3295.9,0.38305186]
[1768641690910,0.91859888,3297.0,3295.9,0.38305186]
[1768641691112,0.91859888,3296.9,3295.9,0.38305186]
[1768641691416,0.35782287,3297.5,3295.9,0.38305186]
[1768641691616,1.17518308,3297.4,3295.9,0.38305186]
[1768641691817,0.91855735,3297.3,3295.9,0.38305186]
[1768641692009,0.91855735,3297.2,3295.9,0.38305186]
[1768641692210,0.91855735,3297.1,3295.9,0.38305186]
[1768641692418,0.35782287,3297.5,3295.9,0.38305186]
[1768641692617,1.17516474,3297.4,3295.9,0.38305186]
[1768641692808,0.35782287,3297.5,3295.9,0.38305186]
[1768641692809,0.91854209,3297.3,3295.9,0.38305186]
[1768641693110,0.91854209,3297.2,3295.9,0.38305186]
[1768641693311,1.90109799,3297.1,3295.9,0.38305186]
[1768641693612,0.9825559,3297.1,3295.9,0.38305186]
[1768641699411,0.9825559,3297.1,3295.8,40.8]
[1768641699622,1.17510608,3297.0,3295.9,0.38674094]
[1768641699814,1.17510608,3296.9,3295.9,0.38674094]
[1768641700015,0.9825559,3297.1,3295.9,0.38674094]
[1768641700216,1.1751592,3297.0,3295.9,0.38674094]
[1768641700518,1.1751592,3296.9,3295.9,0.38674094]
[1768641700722,0.9825559,3297.1,3295.9,0.38674094]
[1768641700915,1.17508116,3297.0,3295.9,0.38674094]
[1768641701117,1.17508116,3296.9,3295.9,0.38674094]
[1768641701310,0.9825559,3297.1,3295.9,0.38674094]
[1768641701510,1.17502839,3297.0,3295.9,0.38674094]
[1768641701718,1.17502839,3296.9,3295.9,0.38674094]
[1768641702016,0.9825559,3297.1,3295.9,0.38674094]
[1768641702315,1.17502834,3297.0,3295.9,0.38674094]
[1768641702514,1.17502834,3296.9,3295.9,0.38674094]
[1768641702718,0.9825559,3297.1,3295.9,0.38674094]
[1768641702918,1.1749988,3297.0,3295.9,0.38674094]
[1768641703121,0.9825559,3297.3,3295.9,1.36929684]
[1768641703316,1.17505753,3297.2,3295.9,1.36929684]
[1768641703519,1.17505753,3297.1,3296.0,0.38674094]
[1768641703820,1.17505753,3297.0,3296.0,0.38674094]
[1768641704013,0.9825559,3297.3,3296.0,0.38674094]
[1768641704216,1.17510081,3297.2,3296.0,0.38674094]
[1768641704417,0.91847886,3297.1,3296.0,0.38674094]
[1768641704617,0.91847886,3297.0,3296.0,0.38674094]
[1768641704811,0.9825559,3297.3,3296.0,0.38674094]
[1768641705011,1.17514778,3297.2,3296.0,0.38674094]
[1768641705211,0.91852581,3297.1,3296.0,0.38674094]
[1768641705508,0.91852581,3297.0,3296.0,0.38674094]
[1768641705704,0.9825559,3297.3,3296.0,0.38674094]
[1768641705906,1.17522057,3297.2,3296.0,0.38674094]
[1768641706109,0.91858463,3297.1,3296.0,0.38674094]
[1768641706324,0.91858463,3297.0,3296.0,0.38674094]
[1768641706514,0.9825559,3297.3,3296.0,0.38674094]
[1768641706714,1.1753203,3297.2,3296.0,0.38674094]
[1768641706917,0.91866532,3297.1,3296.0,0.38674094]
[1768641707117,0.91866532,3297.0,3296.0,0.38674094]
[1768641707320,0.9825559,3297.3,3296.0,0.38674094]
[1768641707508,1.1754458,3297.2,3296.0,0.38674094]
[1768641707822,0.91876741,3297.1,3296.0,0.38674094]
[1768641708120,0.91876741,3297.0,3296.0,0.38674094]
[1768641708322,0.9825559,3297.3,3296.0,0.38674094]
[1768641708522,1.175498,3297.2,3296.0,0.38674094]
[1768641708722,0.91879741,3297.1,3296.0,0.38674094]
[1768641708922,0.91879741,3297.0,3296.0,0.38674094]
[1768641709125,0.9825559,3297.3,3296.0,0.38674094]
[1768641709314,1.17550321,3297.2,3296.0,0.38674094]
[1768641709516,0.91879748,3297.1,3296.0,0.38674094]
[1768641709816,0.91879748,3297.0,3296.0,0.38674094]
[1768641710116,0.9825559,3297.3,3296.0,0.38674094]
[1768641710117,0.91879748,3296.9,3296.0,0.38674094]
[1768641710318,0.9825559,3297.3,3296.0,0.38674094]
[1768641710617,1.17551748,3297.2,3296.0,0.38674094]
[1768641710817,0.91881213,3297.1,3296.0,0.38674094]
[1768641711017,0.91881213,3297.0,3296.0,0.38674094]
[1768641711224,0.9825559,3297.3,3296.0,0.38674094]
[1768641711414,1.17552412,3297.2,3296.0,0.38674094]
[1768641711617,0.9188179,3297.1,3296.0,0.38674094]
[1768641711815,0.9188179,3297.0,3296.0,0.38674094]
[1768641712026,0.9825559,3297.3,3296.0,0.38674094]
[1768641712325,1.17552534,3297.2,3296.0,0.38674094]
[1768641712515,0.91881787,3297.1,3296.0,0.38674094]
[1768641712715,0.91881787,3297.0,3296.0,0.38674094]
[1768641712915,0.9825559,3297.3,3296.0,0.38674094]
[1768641712916,0.91881787,3296.9,3296.0,0.38674094]
[1768641713117,0.91881787,3296.8,3296.0,0.38674094]
[1768641713318,0.9825559,3297.3,3296.0,0.38674094]
[1768641713518,1.17554434,3297.2,3296.0,0.38674094]
[1768641713718,0.91883499,3297.1,3296.0,0.38674094]
[1768641713920,0.91883499,3297.0,3296.0,0.38674094]
[1768641714120,0.91883499,3296.9,3296.0,0.38674094]
[1768641714318,0.91883499,3296.8,3296.0,0.38674094]
[1768641714528,0.9825559,3297.3,3296.0,0.38674094]
[1768641714721,1.17556068,3297.2,3296.0,0.38674094]
[1768641715019,1.17556068,3297.1,3296.0,0.38674094]
[1768641715220,0.91884861,3297.0,3296.0,0.38674094]
[1768641715420,0.91884861,3296.9,3296.0,0.38674094]
[1768641715626,0.91884861,3296.8,3296.0,0.38674094]
[1768641715827,0.9825559,3297.3,3296.0,0.38674094]
[1768641716028,1.17557702,3297.2,3296.0,0.38674094]
[1768641716228,1.17557702,3297.1,3296.0,0.38674094]
[1768641716529,0.91886177,3297.0,3296.0,0.38674094]
[1768641716829,0.91886177,3296.9,3296.0,0.38674094]
[1768641717016,0.91886177,3296.8,3296.0,0.38674094]
[1768641717215,0.9825559,3297.3,3296.0,0.38674094]
[1768641717429,1.17559843,3297.2,3296.0,0.38674094]
[1768641717621,1.17559843,3297.1,3296.0,0.38674094]
[1768641717820,0.9188765,3297.0,3296.0,0.38674094]
[1768641718031,0.9188765,3296.9,3296.0,0.38674094]
[1768641718230,0.9188765,3296.8,3296.0,0.38674094]
[1768641718421,0.9825559,3297.3,3296.0,0.38674094]
[1768641718623,1.17561079,3297.2,3296.0,0.38674094]
[1768641718821,1.17561079,3297.1,3296.0,0.38674094]
[1768641719022,0.91888615,3297.0,3296.0,0.38674094]
[1768641719217,0.91888615,3296.9,3296.0,0.38674094]
[1768641719423,0.91888615,3296.8,3296.0,0.38674094]
[1768641719629,0.9825559,3297.3,3296.0,0.38674094]
[1768641719830,1.17562545,3297.2,3296.0,0.38674094]
[1768641720032,1.17562545,3297.1,3296.0,0.38674094]
[1768641720330,0.91889759,3297.0,3296.0,0.38674094]
[1768641720629,0.91889759,3296.9,3296.0,0.38674094]
[1768641720825,0.9825559,3297.3,3296.0,0.38674094]
[1768641720826,0.91889759,3296.8,3296.0,0.38674094]
[1768641721026,0.9825559,3297.3,3296.0,0.38674094]
[1768641721227,1.17563257,3297.2,3296.0,0.38674094]
[1768641721433,1.17563257,3297.1,3296.0,0.38674094]
[1768641721634,0.91890315,3297.0,3296.0,0.38674094]
[1768641721828,0.91890315,3296.9,3296.0,0.38674094]
[1768641722031,0.91890315,3296.8,3296.0,0.38674094]
[1768641722229,0.9825559,3297.3,3296.0,0.38674094]
[1768641722531,1.17567428,3297.2,3296.0,0.38674094]
[1768641722830,1.17567428,3297.1,3296.0,0.38674094]
[1768641723031,0.91893572,3297.0,3296.0,0.38674094]
[1768641723231,0.91893572,3296.9,3296.0,0.38674094]
[1768641723430,0.91893572,3296.8,3296.0,0.38674094]
[1768641723632,0.91893572,3296.7,3296.0,0.38674094]
[1768641723833,0.91893572,3296.6,3296.0,0.38674094]
[1768641724032,0.91893572,3296.5,3296.0,0.38674094]
[1768641724235,0.9825559,3297.3,3296.0,0.38674094]
[1768641724429,1.1757284,3297.2,3296.0,0.38674094]
[1768641724631,1.1757284,3297.1,3296.0,0.38674094]
[1768641724935,0.91897796,3297.0,3296.0,0.38674094]
[1768641725134,0.91897796,3296.9,3296.0,0.38674094]
[1768641725331,0.91897796,3296.8,3296.0,0.38674094]
[1768641725636,0.91897796,3296.7,3296.0,0.38674094]
[1768641725934,0.91897796,3296.6,3296.0,0.38674094]
[1768641726135,0.91897796,3296.5,3296.0,0.38674094]
[1768641726435,0.9825559,3297.2,3296.0,0.38674094]
[1768641726636,1.17580397,3297.1,3296.0,0.38674094]
[1768641726837,0.91903701,3297.0,3296.0,0.38674094]
[1768641727141,0.91903701,3296.9,3296.0,0.38674094]
[1768641727330,0.91903701,3296.8,3296.0,0.38674094]
[1768641727629,0.91903701,3296.7,3296.0,0.38674094]
[1768641727829,0.91903701,3296.6,3296.0,0.38674094]
[1768641728029,0.9825559,3297.2,3296.0,0.38674094]
[1768641728030,0.91903701,3296.5,3296.0,0.38674094]
[1768641728230,0.9825559,3297.2,3296.0,0.38674094]
[1768641728429,1.17591181,3297.1,3296.0,0.38674094]
[1768641728642,0.91912128,3297.0,3296.0,0.38674094]
[1768641728830,0.91912128,3296.9,3296.0,0.38674094]
[1768641729031,0.91912128,3296.8,3296.0,0.38674094]
[1768641729231,0.91912128,3296.7,3296.0,0.38674094]
[1768641729432,0.91912128,3296.6,3296.0,0.38674094]
[1768641729732,0.91912128,3296.5,3296.0,0.38674094]
[1768641729942,0.9825559,3297.2,3296.0,0.38674094]
[1768641730242,0.25682058,3297.1,3296.0,0.38674094]
[1768641730538,0.25682058,3297.0,3296.0,0.38674094]
[1768641730738,0.9825559,3297.2,3296.0,0.38674094]
[1768641730940,0.25683113,3297.1,3296.0,0.38674094]
[1768641731133,0.25683113,3297.0,3296.0,0.38674094]
[1768641731332,0.9825559,3297.2,3296.0,0.38674094]
[1768641731538,0.25684578,3297.1,3296.0,0.38674094]
[1768641731735,0.25684578,3297.0,3296.0,0.38674094]
[1768641731937,0.9825559,3297.2,3296.0,0.38674094]
[1768641732239,0.25684581,3297.1,3296.0,0.38674094]
[1768641732438,0.25684581,3297.0,3296.0,0.38674094]
[1768641732635,0.9825559,3297.2,3296.0,0.38674094]
[1768641732833,0.25688007,3297.1,3296.0,0.38674094]
[1768641733038,0.25688007,3297.0,3296.0,0.38674094]
[1768641733342,0.9825559,3297.2,3296.0,0.38674094]
[1768641733544,0.2568804,3297.1,3296.0,0.38674094]
[1768641733742,0.2568804,3297.0,3296.0,0.38674094]
[1768641734041,0.9825559,3297.2,3296.0,0.38674094]
[1768641734242,0.25688023,3297.1,3296.0,0.38674094]
[1768641734444,0.25688023,3297.0,3296.0,0.38674094]